{"text_format":"3","workbook":"xlsx","n_sheets":4,"sheets":["Başlangıç","Giderler","Gelir","Kâr - Zarar Özeti"],"not_rendered":{"charts":1},"read":"whole","date_system":"1900"}

{"sheet":"Başlangıç","index":0,"n_rows":8,"n_cols":2,"rows_kept":8}
[null,"BU ŞABLON HAKKINDA"]
[null,"Etkinlikte gerçekleşen Giderleri ve etkinlikten kazanılan Geliri izlemek için bu Etkinlik Bütçesi çalışma kitabını kullanın."]
[null,"Etkinlik Adını girin ve Giderler çalışma sayfası ile Gelir çalışma sayfasındaki tablolara ayrıntıları girin."]
[null,"Toplam Giderler ve Toplam Gelir otomatik olarak hesaplanır."]
[null,"Kâr ve Zarar Özeti ve Grafiği, Kâr-Zarar Özet çalışma sayfasında otomatik olarak güncelleştirilir."]
[null,"Not: "]
[null,"Her çalışma sayfasının A sütununda ek yönergeler sağlanmıştır. Bu metin özellikle gizlendi. Metni kaldırmak için A sütununu ve ardından SİL seçeneğini belirleyin. Metni göstermek için A sütununu seçin ve yazı tipi rengini değiştirin."]
[null,"Tablolar hakkında daha fazla bilgi edinmek için bir tabloda SHIFT ve F10 tuşlarına basın, TABLO seçeneğini ve ardından ALTERNATİF METİN seçeneğini belirleyin."]

{"sheet":"Giderler","index":1,"n_rows":32,"n_cols":8,"rows_kept":32,"merged":[[0,1,0,4],[2,1,3,1]]}
["Bu çalışma sayfasındaki ilgili tablolara her bir kategori için Tahmini ve Fiili harcamaları ve bu ve diğer çalışma sayfalarının başlığını özelleştirmek için D1 hücresine Etkinlik Adını girin. Bu çalışma sayfasının alt başlığı H1 hücresindedir. Bu çalışma sayfasının nasıl kullanılacağını açıklayan yararlı yönergeler bu sütundaki hücrelerdedir. Sonraki yönerge A3 hücresindedir.","Etkinlik Adı için Etkinlik Bütçesi",{"$nulls":5},"GİDERLER"]
[]
["Toplam Giderler etiketi sağdaki hücrede, Tahmini etiketi G3 hücresinde ve Fiili H3 hücresindedir.","TOPLAM GİDERLER",{"$nulls":4},"Tahmini","Fiili"]
["G4 hücresindeki Toplam Tahmini Gider ve H4’teki Toplam Fiili Gider otomatik olarak hesaplanır. Sonraki yönerge A6 hücresindedir.",{"$nulls":5},{"$f":"SUM(C11,C19,C25,C32,G11,G19,G24)","v":{"v":882,"d":"882.00 ₺"}},{"$f":"SUM(D11,D19,D25,D32,H11,H19,H24)","v":{"v":333,"d":"333.00 ₺"}}]
[]
["Site Giderlerini sağdaki hücreden başlayarak ve Atıştırma Giderlerini F6 hücresinden başlayarak tabloya girin. Sonraki yönerge A13 hücresindedir.","Site","Tahmini","Gerçek",null,"Atıştırma","Tahmini","Fiili"]
[null,"Oda ve salon ücretleri",{"v":500,"d":"500.00 ₺"},null,null,"Yiyecek"]
[null,"Site personeli",{"$nulls":3},"İçecekler",{"v":20,"d":"20.00 ₺"}]
[null,"Ekipman",{"$nulls":3},"Masa Örtüleri",null,{"v":20,"d":"20.00 ₺"}]
[null,"Masalar ve sandalyeler",{"$nulls":3},"Personel ve bahşişler"]
[null,"Toplam",{"$f":"SUBTOTAL(109,SiteGiderlerini[Tahmini])","v":{"v":500,"d":"500.00 ₺"}},{"$f":"SUBTOTAL(109,SiteGiderlerini[Gerçek])","v":{"v":0,"d":"0.00 ₺"}},null,"Toplam",{"$f":"SUBTOTAL(109,AtıştırmaGiderlerini[Tahmini])","v":{"v":20,"d":"20.00 ₺"}},{"$f":"SUBTOTAL(109,AtıştırmaGiderlerini[Fiili])","v":{"v":20,"d":"20.00 ₺"}}]
[]
["Dekorasyonlar Giderlerini sağdaki hücreden başlayarak ve Program Giderlerini F13 hücresinden başlayarak tabloya girin. Sonraki yönerge A21 hücresindedir.","Dekorasyonlar","Tahmini","Fiili",null,"Program","Tahmini","Fiili"]
[null,"Çiçekler",{"v":200,"d":"200.00 ₺"},{"v":300,"d":"300.00 ₺"},null,"Sanatçı"]
[null,"Mumlar",{"$nulls":3},"Konuşmacı",{"v":30,"d":"30.00 ₺"}]
[null,"Aydınlatma",{"$nulls":3},"Seyahat"]
[null,"Balonlar",{"$nulls":3},"Otel"]
[null,"Kağıt malzemeler",{"$nulls":3},"Diğer"]
[null,"Toplam",{"$f":"SUBTOTAL(109,DekorasyonlarGiderlerini[Tahmini])","v":{"v":200,"d":"200.00 ₺"}},{"$f":"SUBTOTAL(109,DekorasyonlarGiderlerini[Fiili])","v":{"v":300,"d":"300.00 ₺"}},null,"Toplam",{"$f":"SUBTOTAL(109,ProgramGiderlerini[Tahmini])","v":{"v":30,"d":"30.00 ₺"}},{"$f":"SUBTOTAL(109,ProgramGiderlerini[Fiili])","v":{"v":0,"d":"0.00 ₺"}}]
[]
["Tanıtım Giderlerini sağdaki hücreden başlayarak ve Ödüller Giderlerini F21 hücresinden başlayarak tabloya girin. Sonraki yönerge A27 hücresindedir","Tanıtım","Tahmini","Fiili",null,"Ödüller","Tahmini","Fiili"]
[null,"Grafik işleri",{"$nulls":3},"Kurdeleler/Plaketler/Kupalar"]
[null,"Fotokopi/Yazdırma",{"v":20,"d":"20.00 ₺"},null,null,"Hediyeler",{"v":100,"d":"100.00 ₺"}]
[null,"Posta",{"$nulls":3},"Toplam",{"$f":"SUBTOTAL(109,ÖdüllerGiderlerini[Tahmini])","v":{"v":100,"d":"100.00 ₺"}},{"$f":"SUBTOTAL(109,ÖdüllerGiderlerini[Fiili])","v":{"v":0,"d":"0.00 ₺"}}]
[null,"Toplam",{"$f":"SUBTOTAL(109,TanıtımGiderlerini[Tahmini])","v":{"v":20,"d":"20.00 ₺"}},{"$f":"SUBTOTAL(109,TanıtımGiderlerini[Fiili])","v":{"v":0,"d":"0.00 ₺"}}]
[]
["Çeşitli Giderleri sağdaki hücreden başlayarak tabloya girin.","Çeşitli","Tahmini","Fiili"]
[null,"Telefon",null,{"v":13,"d":"13.00 ₺"}]
[null,"Ulaşım",{"v":12,"d":"12.00 ₺"}]
[null,"Kırtasiye malzemeleri"]
[null,"Faks hizmetleri"]
[null,"Toplam",{"$f":"SUBTOTAL(109,ÇeşitliGiderleri[Tahmini])","v":{"v":12,"d":"12.00 ₺"}},{"$f":"SUBTOTAL(109,ÇeşitliGiderleri[Fiili])","v":{"v":13,"d":"13.00 ₺"}}]

{"sheet":"Gelir","index":2,"n_rows":29,"n_cols":7,"rows_kept":29,"merged":[[0,1,0,3],[2,1,3,1]]}
["Her kategorinin Tahmini ve Fiili gelirini bu çalışma sayfasında ilgili tablolara girin. Bu çalışma sayfasının başlığı sağdaki hücrelerde otomatik olarak hesaplanır. Alt başlık G1 hücresindedir. Bu çalışma sayfasının nasıl kullanılacağını açıklayan yararlı yönergeler bu sütundaki hücrelerdedir. Sonraki yönerge A3 hücresindedir.",{"$f":"Giderler!B1","v":"Etkinlik Adı için Etkinlik Bütçesi"},{"$nulls":4},"GELİR"]
[]
["Toplam Gelir etiketi sağdaki hücrede, Tahmini etiketi F3 hücresinde ve Fiili G3 hücresindedir.","TOPLAM GELİR",{"$nulls":3},"Tahmini","Fiili"]
["Toplam Tahmini Gelir F4 hücresinde ve Toplam Fiili Gelir G4 hücresinde otomatik hesaplanır.",{"$nulls":4},{"$f":"SUM(Girişler[[#Totals],[Tahmini Gelir]],ProgramdakiReklamlar[[#Totals],[Tahmini Gelir]],SergiAçanlarVeSatıcılar[[#Totals],[Tahmini Gelir]],ÜrünSatişlari[[#Totals],[Tahmini Gelir]])","v":{"v":1936,"d":"1,936.00 ₺"}},{"$f":"SUM(Girişler[[#Totals],[Fiili Gelir]],ProgramdakiReklamlar[[#Totals],[Fiili Gelir]],SergiAçanlarVeSatıcılar[[#Totals],[Fiili Gelir]],ÜrünSatişlari[[#Totals],[Fiili Gelir]])","v":{"v":1831,"d":"1,831.00 ₺"}}]
["Girişler etiketi sağdaki hücrededir.","GİRİŞLER"]
["Girişlerin Tahmini ve Fiili sayılarını bilet ücretleriyle birlikte sağdaki hücreden başlayarak tabloya girin. Girişlerden elde edilen Tahmini ve Fiili Gelir otomatik olarak hesaplanır. Sonraki yönerge A11 hücresindedir.","Tahmini Sayı","Fiili Sayı","Tür","Fiyat","Tahmini Gelir","Fiili Gelir"]
[null,300,278,"Yetişkinler @",{"v":5,"d":"5.00 ₺"},{"$f":"B7*E7","v":{"v":1500,"d":"1,500.00 ₺"}},{"$f":"C7*E7","v":{"v":1390,"d":"1,390.00 ₺"}}]
[null,197,195,"Çocuklar @",{"v":2,"d":"2.00 ₺"},{"$f":"B8*E8","v":{"v":394,"d":"394.00 ₺"}},{"$f":"C8*E8","v":{"v":390,"d":"390.00 ₺"}}]
[null,42,51,"Diğer @",{"v":1,"d":"1.00 ₺"},{"$f":"B9*E9","v":{"v":42,"d":"42.00 ₺"}},{"$f":"C9*E9","v":{"v":51,"d":"51.00 ₺"}}]
[null,"Toplam",{"$nulls":3},{"$f":"SUBTOTAL(109,Girişler[Tahmini Gelir])","v":{"v":1936,"d":"1,936.00 ₺"}},{"$f":"SUBTOTAL(109,Girişler[Fiili Gelir])","v":{"v":1831,"d":"1,831.00 ₺"}}]
["Programdaki reklamlar etiketi sağdaki hücrededir.","PROGRAMDAKİ REKLAMLAR"]
["Programdaki reklamlar Tahmini ve Fiili sayılarını ve reklam ücretlerini sağdaki hücreden başlayarak tabloya girin. Reklamlardan elde edilen Tahmini ve Fiili Gelir otomatik olarak hesaplanır. Sonraki yönerge A17 hücresindedir.","Tahmini Sayı","Fiili Sayı","Tür","Fiyat","Tahmini Gelir","Fiili Gelir"]
[null,12,null,"Kapaklar @",null,{"$f":"B13*E13","v":{"v":0,"d":"0.00 ₺"}},{"$f":"C13*E13","v":{"v":0,"d":"0.00 ₺"}}]
[null,null,158,"Yarım sayfalar @",null,{"$f":"B14*E14","v":{"v":0,"d":"0.00 ₺"}},{"$f":"C14*E14","v":{"v":0,"d":"0.00 ₺"}}]
[null,4,null,"Çeyrek sayfalar @",null,{"$f":"B15*E15","v":{"v":0,"d":"0.00 ₺"}},{"$f":"C15*E15","v":{"v":0,"d":"0.00 ₺"}}]
[null,"Toplam",{"$nulls":3},{"$f":"SUBTOTAL(109,ProgramdakiReklamlar[Tahmini Gelir])","v":{"v":0,"d":"0.00 ₺"}},{"$f":"SUBTOTAL(109,ProgramdakiReklamlar[Fiili Gelir])","v":{"v":0,"d":"0.00 ₺"}}]
["Sergi Açanlar veya Satıcılar etiketi sağdaki hücrededir.","SERGİ AÇANLAR/SATICILAR"]
["Sergi açanlar ve satıcılar Tahmini ve Fiili sayılarını ve stand ücretlerini sağdaki hücreden başlayarak tabloya girin. Tahmini ve Fiili Gelir otomatik olarak hesaplanır. Sonraki yönerge A23 hücresindedir.","Tahmini Sayı","Fiili Sayı","Tür","Fiyat","Tahmini Gelir","Fiili Gelir"]
[null,23,null,"Büyük standlar @",null,{"$f":"B19*E19","v":{"v":0,"d":"0.00 ₺"}},{"$f":"C19*E19","v":{"v":0,"d":"0.00 ₺"}}]
[null,354,null,"Orta boy standlar @",null,{"$f":"B20*E20","v":{"v":0,"d":"0.00 ₺"}},{"$f":"C20*E20","v":{"v":0,"d":"0.00 ₺"}}]
[null,56,null,"Küçük standlar @",null,{"$f":"B21*E21","v":{"v":0,"d":"0.00 ₺"}},{"$f":"C21*E21","v":{"v":0,"d":"0.00 ₺"}}]
[null,"Toplam",{"$nulls":3},{"$f":"SUBTOTAL(109,SergiAçanlarVeSatıcılar[Tahmini Gelir])","v":{"v":0,"d":"0.00 ₺"}},{"$f":"SUBTOTAL(109,SergiAçanlarVeSatıcılar[Fiili Gelir])","v":{"v":0,"d":"0.00 ₺"}}]
["Ürün satışları etiketi sağdaki hücrededir.","ÜRÜN SATIŞLARI"]
["Ürün Satişlari Tahmini ve Fiili sayılarını ve ürün ücretlerini sağdaki hücreden başlayarak tabloya girin. Tahmini ve Fiili Gelir otomatik olarak hesaplanır.","Tahmini Sayı","Fiili Sayı","Tür","Fiyat","Tahmini Gelir","Fiili Gelir"]
[{"$nulls":3},"Ürünler @",null,{"$f":"B25*E25","v":{"v":0,"d":"0.00 ₺"}},{"$f":"C25*E25","v":{"v":0,"d":"0.00 ₺"}}]
[null,123,null,"Ürünler @",null,{"$f":"B26*E26","v":{"v":0,"d":"0.00 ₺"}},{"$f":"C26*E26","v":{"v":0,"d":"0.00 ₺"}}]
[{"$nulls":3},"Ürünler @",null,{"$f":"B27*E27","v":{"v":0,"d":"0.00 ₺"}},{"$f":"C27*E27","v":{"v":0,"d":"0.00 ₺"}}]
[null,13,null,"Ürünler @",null,{"$f":"B28*E28","v":{"v":0,"d":"0.00 ₺"}},{"$f":"C28*E28","v":{"v":0,"d":"0.00 ₺"}}]
[null,"Toplam",{"$nulls":3},{"$f":"SUBTOTAL(109,ÜrünSatişlari[Tahmini Gelir])","v":{"v":0,"d":"0.00 ₺"}},{"$f":"SUBTOTAL(109,ÜrünSatişlari[Fiili Gelir])","v":{"v":0,"d":"0.00 ₺"}}]

{"sheet":"Kâr - Zarar Özeti","index":3,"n_rows":8,"n_cols":7,"rows_kept":8,"merged":[[0,1,0,3],[2,4,11,6]]}
["Kâr ve Zarar Özeti ile Toplam Gelir ve Giderleri gösteren Grafik bu çalışma sayfasında otomatik olarak güncelleştirilir. Bu çalışma sayfasının başlığı sağdaki hücrelerde otomatik olarak hesaplanır. Alt başlık G1 ve G2 hücresindedir. Bu çalışma sayfasının nasıl kullanılacağını açıklayan yararlı yönergeler bu sütundaki hücrelerdedir. Sonraki yönerge A3 hücresindedir.",{"$f":"Giderler!B1","v":"Etkinlik Adı için Etkinlik Bütçesi"},{"$nulls":4},"KÂR"]
[{"$nulls":6},"Zarar Özeti"]
["Tahmini Gelir ve Giderler ile Fiili Gelir ve Giderleri karşılaştıran çubuk grafik E3 hücresindedir.",{"$nulls":3},"Tahmini Gelir ve Giderler ile Fiili Gelir ve Giderlerin karşılaştırmasını gösteren çubuk grafik bu hücrededir."]
["Sağdaki hücreden başlayan özet tablosu otomatik olarak güncelleştirilir. Sonraki yönerge A8 hücresindedir."," Toplam","Tahmini","Fiili"]
[null,"Toplam gelir",{"$f":"Gelir!F4","v":{"v":1936,"d":"1,936.00 ₺"}},{"$f":"Gelir!G4","v":{"v":1831,"d":"1,831.00 ₺"}}]
[null,"Toplam giderler",{"$f":"Giderler!G4","v":{"v":882,"d":"882.00 ₺"}},{"$f":"Giderler!H4","v":{"v":333,"d":"333.00 ₺"}}]
[]
["Tahmini Toplam kâr veya zarar C8 hücresinde ve Fiili Toplam kâr veya zarar D8 hücresinde otomatik olarak hesaplanır.","Toplam kâr (veya zarar)",{"$f":"C5-C6","v":{"v":1054,"d":"1,054.00 ₺"}},{"$f":"D5-D6","v":{"v":1498,"d":"1,498.00 ₺"}}]